Cogmind - Beta 16 @@@ ROGUE MODE // 2026.02.03 @ 16:37:31 Player: eb Result: Destroyed by EN-TKE(R) with Subdweller Beam Cannon Performance ------------- Evolutions (0) 0 Regions Visited (2) 400 Robots Destroyed (22) 110 Value Destroyed (501) 501 Prototype IDs (2) 40 Alien Tech Used (0) 0 Bonus (0) 0 TOTAL SCORE: 1051 Bonus ------- None Cogmind --------- Core Integrity 0/250 Matter 267/300 Energy 84/100 System Corruption 0% Temperature Cool (9) Movement Core (350) Ox6 Location -10/Subcaves Parts ------- > --- POWER (1) -------- (None) > --- PROPULSION (2) --- (None) > --- UTILITY (2) ------ Large Storage Unit > --- WEAPON (2) ------- (None) > --- INVENTORY (15) --- Light Ion Engine Improved Aluminum Leg Improved Aluminum Leg Improved Aluminum Leg Improved Aluminum Leg Medium Storage Unit Sensor Array ECM Suite Hacking Suite Tractor Beam Peak State ------------ > --- POWER ------------ Ion Engine > --- PROPULSION ------- Light Treads Light Treads > --- UTILITY ---------- Large Storage Unit Visual Processing Unit > --- WEAPON ----------- EM Pulse Gun EM Pulse Gun > --- INVENTORY -------- Light Ion Engine VTOL Module VTOL Module VTOL Module Medium Storage Unit Sensor Array Signal Interpreter ECM Suite Hacking Suite Tractor Beam EM Pulse Gun Medium Laser Light Cannon Datajack Mining Laser [Rating: 10] Favorites ----------- Power Light Ion Engine Engine Light Ion Engine Propulsion Light Treads Treads Light Treads Utility Large Storage Unit Storage Large Storage Unit Processor Visual Processing Unit Weapon EM Pulse Gun Energy Gun EM Pulse Gun Ballistic Cannon Light Cannon Special Weapon Mining Laser Special Melee Weapon Datajack Build | -11 -10 -10 ------- Run | Yrd Mat Sub Slots Evolved . | . . . Power . | . . . Propulsion . | . . . Utility . | . . . Weapon . | . . . Parts Attached 18 | 6 9 3 Power 3 | 1 2 . Engine 3 | 1 2 . Core . | . . . Reactor . | . . . Propulsion 2 | 2 . . Treads 2 | 2 . . Leg . | . . . Wheel . | . . . Hover . | . . . Flight . | . . . Utility 5 | 1 4 . Device . | . . . Storage 3 | 1 2 . Processor 2 | . 2 . Hackware . | . . . Protection . | . . . Artifact . | . . . Weapon 8 | 2 3 3 Energy Gun 5 | 2 2 1 Energy Cannon . | . . . Ballistic Gun . | . . . Ballistic Cannon 1 | . . 1 Launcher . | . . . Special Weapon 1 | . 1 . Impact Weapon . | . . . Slashing Weapon . | . . . Piercing Weapon . | . . . Special Melee Weapon 1 | . . 1 Unidentified Prototypes . | . . . Parts Lost 12 | . 2 10 Power 1 | . . 1 Propulsion 2 | . . 2 Utility 1 | . . 1 Weapon 8 | . 2 6 Highest Loss Streak 10 | . 1 10 To Critical Strikes . | . . . Average Backups 11 | 2 11 13 Power . | . 1 1 Propulsion 3 | 1 3 4 Utility 3 | . 3 5 Weapon 2 | . 2 2 Tool/Special . | . . . Unused Backups 20 | . 15 5 Power 1 | . . 1 Propulsion 10 | . 10 . Utility 7 | . 3 4 Weapon 2 | . 2 . Tool/Special . | . . . Average Slot Usage (%) 94 | . 96 84 Engine 13 | . 14 9 Treads 26 | . 28 21 Storage 14 | . 14 14 Processor 11 | . 10 14 Energy Gun 26 | . 27 21 Peak Build Rating 10 | 6 10 9 Average Rating 7 | 4 8 7 On Entrance 5 | . 6 9 Avg Prop Armor Cover (%) . | . . . Naked Turns . | . . . Heaviest Build 29 | 12 29 29 Greatest Support 40 | 40 40 40 Greatest Overweight (x) 6 | . . 6 Average Overweight (x) . | . . . Largest Inventory Capacity 15 | 8 15 15 Average Capacity 13 | 6 13 15 Most Carried 15 | 6 15 14 Average Carried 11 | 3 11 13 Final Capacity 15 | 8 15 15 Final Carried 14 | 6 14 10 Class Distribution -------------------- 100% | Mutant Dominant Class ---------------- Mutant | -10/Materials Mutant | -10/Subcaves Resources | -11 -10 -10 ----------- Run | Yrd Mat Sub Matter Collected 331 | 223 108 . Remotely . | . . . Salvage Created 753 | . 701 52 Parts 50 | . 44 6 Haulers Intercepted 1 | . 1 . Recyclers Shooed . | . . . Parts Field Recycled . | . . . Retrieved Matter . | . . . Parts Self-Destructed . | . . . Prevented . | . . . Parts Restored . | . . . Kills | -11 -10 -10 ------- Run | Yrd Mat Sub Combat Hostiles Destroyed 13 | . 12 1 Guns 11 | . 10 1 AOE 2 | . 2 . Classes Destroyed 9 | . 8 1 Worker 1 | . 1 . Hauler 1 | . 1 . Recycler 1 | . 1 . Mechanic 1 | . 1 . Operator 2 | . 2 . Watcher 3 | . 3 . Swarmer 3 | . 3 . Grunt 9 | . 9 . Subdweller 1 | . . 1 Best Kill Streak 4 | . 4 1 Combat Bots Only 3 | . 3 1 Max Kills in Single Turn 2 | . 2 1 Gunslinging . | . . . Exploded 1 | . 1 . Melee . | . . . Uniques/NPCs Destroyed . | . . . Combat | -11 -10 -10 -------- Run | Yrd Mat Sub Hostile Shots Fired 92 | . 54 38 Missed 29 | . 16 13 Hits 63 | . 38 25 Projectile 63 | . 38 25 Damage Taken 1086 | . 399 687 Core 250 | . 47 203 Absorbed by Shields . | . . . Core Remaining (%) 100 | 100 . . Volleys Fired 75 | . 56 19 Largest 2 | . 2 2 Hottest 100 | . 100 100 Shots Fired 135 | . 109 26 Gun 124 | . 106 18 Cannon 7 | . . 7 Launcher . | . . . Special 4 | . 3 1 Kinetic 7 | . . 7 Thermal 4 | . 3 1 Explosive . | . . . Electromagnetic 124 | . 106 18 Robot Hit Streak 16 | . 9 16 Robot Miss Streak 5 | . 5 1 Penetration Max . | . . . Secondary Targets 1 | . 1 . Max Gunslinging Chain 1 | . 1 . Shots Hit Robots 83 | . 52 31 Core Hits 26 | . 23 3 Critical Kills . | . . . Critical Parts Destroyed . | . . . Critical Strikes 3 | . 2 1 Corrupt 3 | . 2 1 Melee Attacks 7 | . . 7 Impact . | . . . Slashing . | . . . Piercing . | . . . Sneak Attacks . | . . . Combat Hostiles . | . . . Follow-up Attacks . | . . . Damage Inflicted 1003 | . 956 47 Guns 802 | . 757 45 Cannons . | . . . Explosions 181 | . 181 . Melee . | . . . Ramming 20 | . 18 2 Kinetic . | . . . Thermal 181 | . 181 . Explosive . | . . . Electromagnetic 802 | . 757 45 Impact . | . . . Slashing . | . . . Piercing . | . . . Highest Corruption . | . . . Average Corruption . | . . . Corruption Purged . | . . . Corruption Blocked . | . . . Overload Shots . | . . . Overflow Damage 2 | . 2 . Projectiles . | . . . Explosions 2 | . 2 . Melee . | . . . Knockbacks . | . . . Impact . | . . . Kinetic . | . . . Secondary . | . . . Self-Inflicted Damage 37 | . 37 . Shots 1 | . 1 . Rammed 4 | . 2 2 Targets Rammed 5 | . 3 2 Kicked . | . . . Crushed 1 | . 1 . Highest Temperature 178 | . 178 . Average Temperature 51 | . 51 . Received Heat Transfer 327 | . 102 225 Siege Activations . | . . . Martial Activations . | . . . Shielding Activations . | . . . Robots Disrupted . | . . . Combat Hostiles . | . . . Robots Corrupted . | . . . Combat Hostiles . | . . . Parts Fried 5 | . 5 . Impact Corruptions . | . . . Robots Melted . | . . . Combat Hostiles . | . . . Parts Melted . | . . . Heat Transferred 250 | . 250 . Parts Sabotaged . | . . . Parts Stolen . | . . . Parts Stripped . | . . . Power Chain Reactions 4 | . 4 . Alert | -11 -10 -10 ------- Run | Yrd Mat Sub Maximum Alert Level . | . . . Low Security (%) 100 | 100 100 . Level 1 . | . . . Level 2 . | . . . Level 3 . | . . . Level 4 . | . . . Level 5 . | . . . High Security . | . . . Max Security . | . . . Peak Influence 186 | . 186 . Initial . | . . . Average 55 | . 60 . Influence Increases 395 | . 395 . Destroy 0b10 Robot/C 240 | . 240 . Destroy 0b10 Robot/NC 45 | . 45 . Destroy Leader 58 | . 58 . Successful Hack 5 | . 5 . Disable Machine 15 | . 15 . Destroy Structure 17 | . 17 . Lose Combat Pursuer 15 | . 15 . Influence Decreases 395 | . 233 162 Entered New Map 78 | . . 78 Time Decay 277 | . 213 64 Lost Part 40 | . 20 20 Squads Dispatched 3 | . 3 . Investigation 2 | . 2 . Extermination . | . . . Reinforcement 1 | . 1 . Assault . | . . . Garrison . | . . . Intercept . | . . . Searches Triggered . | . . . Construction Impeded . | . . . Haulers Reinforced . | . . . Active Scanning Responses . | . . . Cargo Convoy Interrupts . | . . . Stealth | -11 -10 -10 --------- Run | Yrd Mat Sub Distress Signals . | . . . Communications Jammed . | . . . Distress Signals . | . . . Times Spotted 21 | . 19 2 Peak Tracking Total 3 | . 3 2 Tactical Retreats 1 | . 1 . Traps | -11 -10 -10 ------- Run | Yrd Mat Sub Traps Triggered 1 | . 1 . Indirectly . | . . . Trap Hack Attempts . | . . . Triggered . | . . . Disarmed . | . . . Reprogrammed . | . . . Reused . | . . . Traps Extracted . | . . . Installed . | . . . Triggered . | . . . Machines | -11 -10 -10 ---------- Run | Yrd Mat Sub Machines Disabled 1 | . 1 . Max in Single Turn 1 | . 1 . Machines Repaired . | . . . Machines Dismantled . | . . . Machines Sabotaged . | . . . Overloaded Fab Kills . | . . . Hacking | -11 -10 -10 --------- Run | Yrd Mat Sub Machines Accessed 1 | . 1 . Terminals 1 | . 1 . Fabricators . | . . . Repair Stations . | . . . Recycling Units . | . . . Scanalyzers . | . . . Garrison Access . | . . . Total Hacks 6 | . 6 . Successful 2 | . 2 . Failed 4 | . 4 . Catastrophic 1 | . 1 . Database Lockouts . | . . . Manual 5 | . 5 . Terminals 6 | . 6 . Fabricators . | . . . Repair Stations . | . . . Recycling Units . | . . . Scanalyzers . | . . . Garrison Access . | . . . Terminal Hacks 2 | . 2 . Prototype ID Bank 1 | . 1 . Locate Traps 1 | . 1 . Fabricator Hacks . | . . . Repair Station Hacks . | . . . Recycling Unit Hacks . | . . . Scanalyzer . | . . . Garrison Access Hacks . | . . . Unauthorized Hacks . | . . . Terminals . | . . . Fabricators . | . . . Repair Stations . | . . . Recycling Units . | . . . Scanalyzers . | . . . Garrison Access . | . . . Data Cores Recovered 1 | . 1 . Used . | . . . Hacking Detections 1 | . 1 . Full Trace Events . | . . . Feedback Events . | . . . Feedback Blocked . | . . . Robot Schematics Acquired . | . . . Robots Built . | . . . Authchips . | . . . Time . | . . . Total Robot Build Rating . | . . . Part Schematics Acquired . | . . . Parts Built . | . . . Authchips . | . . . Time . | . . . Total Part Build Rating . | . . . Part Studies Acquired . | . . . Parts Repaired . | . . . Time . | . . . Parts Recycled . | . . . Recycled Matter . | . . . Retrieved Matter . | . . . Retrieved Components . | . . . Parts Scanalyzed . | . . . Part Schematics Acquired . | . . . Parts Damaged . | . . . Bothacking | -11 -10 -10 ------------ Run | Yrd Mat Sub Used RIF Installer . | . . . Robots Hacked . | . . . Non-combat . | . . . Combat . | . . . Robot Hacks Applied . | . . . Relay Couplers Released . | . . . Fabnet Peak Effective % . | . . . Robots Rewired . | . . . Allies Hacked . | . . . Hacks Repelled . | . . . Allies | -11 -10 -10 -------- Run | Yrd Mat Sub Total Allies . | . . . Largest Group . | . . . Highest-Rated Group . | . . . Highest-Rated Ally . | . . . Total Orders . | . . . Ally Attacks . | . . . Total Damage . | . . . Kills . | . . . Allies Corrupted . | . . . Allies Melted . | . . . Intel | -11 -10 -10 ------- Run | Yrd Mat Sub Active Infowar (turns) 782 | . 782 . Optics 782 | . 782 . Robot Analysis Total . | . . . Derelict Logs Recovered . | . . . Drone Launches . | . . . Drone Recoveries . | . . . Exploration | -11 -10 -10 ------------- Run | Yrd Mat Sub Turns Passed 1284 | 84 1005 195 Spaces Moved 602 | 45 482 75 Core 4 | 2 . 2 Treads 598 | 43 482 73 Legs . | . . . Wheels . | . . . Hover . | . . . Flight . | . . . Fastest Speed 50 | 50 160 160 Average Speed 160 | 155 160 165 Slowest Speed 350 | 160 160 350 Overloaded Moves . | . . . Propulsion Burnouts . | . . . Robots Hopped . | . . . Potential Cave-ins . | . . . Cave-ins Triggered . | . . . Exploration Rate (%) 32 | 5 85 7 Regions Visited 2 Branch Regions 1 Pre-discovered Areas . | . . . Known Exits Taken 1 | . 1 . Unknown Exits Taken 1 | 1 . . Scrap Searched . | . . . Spaces Dug . | . . . Terrain Destroyed 16 | . 16 . Melee . | . . . Projectile . | . . . AOE 16 | . 16 . Terrain Rammed . | . . . Walls Destroyed . | . . . Machines Disabled . | . . . Actions | -11 -10 -10 --------- Run | Yrd Mat Sub Total 771 | 56 605 110 Wait 13 | . 10 3 Move 600 | 44 481 75 Hop . | . . . Pick Up 33 | 6 27 . Fast Attach 7 | 6 1 . Attach 7 | . 3 4 Detach . | . . . Swap 6 | . 6 . Drop 18 | . 18 . Fire 75 | . 56 19 Melee 7 | . . 7 Ram 2 | . . 2 Kick . | . . . Crush 3 | . 3 . Escape Stasis . | . . . Rewire . | . . . Trap . | . . . Miscellaneous . | . . . Route ------- -11/Scrapyard -10/Materials (discovered 5 exits: [*Mat x2] / [*Min x2] / *Sub) -10/Subcaves History --------- Turn | Location | Event 6 | -11/Scrapyard | Discovered new exit (range 15) 85 | -11/Scrapyard | Entered Materials 249 | -10/Materials | Discovered new exit (range 8) 318 | -10/Materials | Build established: Mutant 496 | -10/Materials | Discovered new exit (range 12) 555 | -10/Materials | Discovered new exit (range 17) 988 | -10/Materials | Discovered new exit (range 11) 1074 | -10/Materials | Discovered new exit (range 7) 1088 | -10/Materials | Identified exit to Subcaves 1090 | -10/Materials | Entered Subcaves 1091 | -10/Subcaves | Approached by a straggling Scientist 1269 | -10/Subcaves | Core integrity fell below 50% 1279 | -10/Subcaves | Core integrity fell below 20% 1285 | -10/Subcaves | Destroyed by EN-TKE(R) with Subdweller Beam Cannon Last Messages --------------- from was talking about a shortcut back to the UFD." LT-VKH(c): "I think it's somewhere east of here" 01213_ WE-G68(R) destroyed. 01220_ Ion Engine destroyed. 01222_ Subatomizers dissect the Corrupted Sub. Monowheel. 01222_ Lgt. Treads destroyed. 01230_ EM Pulse Gun destroyed. 01237_ Subatomizers dissect the Corrupted Sub. Monowheel. LT-VKH(c): "I think it's somewhere east of here" 01246_ Lgt. Cannon destroyed. 01246_ Lgt. Treads destroyed. 01250_ Subatomizers dissect the Corrupted Sub. Power Source. 01254_ EM Pulse Gun destroyed. 01260_ Mining Laser destroyed. 01264_ Subatomizers dissect the Corrupted Disposable Heat Sink. 01264_ Slammed into EN-TKE(R). [Achievement: Hydra] 01277_ Subatomizers dissect the Corrupted Disposable Heat Sink. 01285_ Datajack destroyed. 01285_ Signal Interpreter destroyed. Map ----- +----------------------------------------------------+ | ????##?????# ##???????????????????????????? | | ???????????### #???????????????????????????? | | ??????????#### #???????????????????????????? | | ?????????## #???????????????????????????? | | ?????????# ## ##??????????????????????????? | | ?????????# ## #??????????????????????????? | | ?????????# ## ##??????????????????????????? | | ??????##?# # ##??????????????????????????? | | ??????# ## ##?????????????????????????? | | ??????# ### #?????????????????????????? | | ??????# ### #####?????????????????????? | | ??????## ## #?????????????????????? | | ???????## ####### #?????????????????????? | | ????????## ##??#### ##?????????????????????? | | ?????????###??## ###??????????????????????? | | ??????????????# ;#???????????????????????? | | ??????????????# ##??????????????????????? | | ??????????????## c #??##??????????????????? | | ???????????????## #?# #??????????????????? | | ????????????????## " ## #???????????????????? | | ?????????????????####""" & "#????????????????????? | | ????????????????????#### !&"#????????????????????? | | ??????????????????????##][;#?????????????????????? | | ?????????????????????##" %##??????? #???????????? | | ?????????????????????# * =## #?????????? | | ?????????????????????# ""@ & ????????? | | ?????????????????????#""R ## #???????????? | | ????????????????????""" ##????? ##???????????? | | ???????????????????""" "" ##????????????????????? | | ??????????????????? "" ###?????????????????????? | | ???????????????????# " #???????????????????????? | | ?????????????????? ##???????????????????????? | | ????????????????? ## #?????????????????????????? | | ???????????????? ??##??????????????????????????? | | ??????????????? ???????????????????????????????? | | ?????????????? ????????????????????????????????? | | ?????????????? ?????????????????????????????????? | | ?????????????????????????????????????????????????? | | ?????????????????????????????????????????????????? | | ?????????????????????????????????????????????????? | | ?????????????????????????????????????????????????? | | ?????????????????????????????????????????????????? | | ?????????????????????????????????????????????????? | | ?????????????????????????????????????????????????? | | ?????????????????????????????????????????????????? | | ?????????????????????????????????????????????????? | | ?????????????????????????????????????????????????? | | ?????????????????????????????????????????????????? | | ?????????????????????????????????????????????????? | | ?????????????????????????????????????????????????? | +----------------------------------------------------+ Best States ------------- Heat Dissipation 25 Energy Generation 10 Energy Capacity 250 Matter Stores 300 Matter Capacity 300 Sight Range 18 Terrain Scan Density 10 Evasion (%) 40 Recoil Reduction 2 Item Schematics ----------------- None Robot Schematics ------------------ None Fabricated ------------ Nothing Repaired ---------- Nothing Studied --------- None Alien Tech Used ----------------- None Achievements -------------- Hydra Challenges ------------ None Game ------ Seed MultitargetingGatlingDriver Manual? 0 Play Time 00:17:48 Cumulative 61.3 hours Start 2026.02.03 @ 16:21:32 End 2026.02.03 @ 16:37:31 Sessions 1 Manual Loads 0 Difficulty Rogue Special Mode None Game No. 39 Rogue 39 Adventurer 0 Explorer 0 Win Type - Total 3 Types 3/0/0/0/0/0/0/0/0/0 Lore% 25 Gallery% 39 Achievement% 27 Wizard Run 0 Options --------- Layout 0 ASCII 0 Keyboard 0 Movement Numpad Keybinds 0 Fullscreen 2 Font 24/Terminus Map View 76x50 Zoom Use 0% Tactical HUD 1 Map Filters NONE Filters NONE Steam 1 RUN: 8c8d48e0-e1a2-44c2-9d46-aec4eb66a2d2